fUST/lending_fUST_20250527
["ID","MTS","AMOUNT","RATE_DAILY","PERIOD"]
[362526806,1748351460032,-430.0,0.0002,2]
[362526807,1748351460043,-430.0,0.0002,2]
[362526808,1748351460057,-430.0,0.0002,2]
[362526809,1748351460073,-430.0,0.0002,2]
[362526810,1748351460084,-430.0,0.0002,2]
[362526811,1748351460095,-430.0,0.0002,2]
[362526812,1748351460105,-430.0,0.0002,2]
[362526813,1748351460116,-430.0,0.0002,2]
[362526814,1748351460127,-165.20820215,0.0002,2]
[362526815,1748351460138,-430.0,0.0002,2]
[362526816,1748351460149,-430.0,0.0002,2]
[362526817,1748351460161,-430.0,0.0002,2]
[362526818,1748351460172,-624.22,0.0002,2]
[362526819,1748351460182,-430.0,0.0002,2]
[362526820,1748351460192,-430.0,0.0002,2]
[362526821,1748351460202,-430.0,0.0002,2]
[362526822,1748351460213,-430.0,0.0002,2]
[362526823,1748351460223,-545.27,0.0002,2]
[362526824,1748351460234,-216.7836417,0.0002,2]
[362526825,1748351460245,-430.0,0.0002,2]
[362526826,1748351460256,-430.0,0.0002,2]
[362526827,1748351460266,-430.0,0.0002,2]
[362526828,1748351460276,-430.0,0.0002,2]
[362526829,1748351460287,-430.0,0.0002,2]
[362526830,1748351460302,-489.01,0.0002,2]
[362526831,1748351460313,-430.0,0.0002,2]
[362526832,1748351460324,-430.0,0.0002,2]
[362526833,1748351460335,-430.0,0.0002,2]
[362526834,1748351460345,-430.0,0.0002,2]
[362526835,1748351460355,-430.0,0.0002,2]
[362526836,1748351460367,-430.0,0.0002,2]
[362526837,1748351460378,-430.0,0.0002,2]
[362526838,1748351460389,-430.0,0.0002,2]
[362526839,1748351460399,-408.69381437,0.0002,2]
[362526840,1748351460409,-258.64573,0.0002,2]
[362526841,1748351460420,-430.0,0.0002,2]
[362526842,1748351460430,-430.0,0.0002,2]
[362526843,1748351460440,-430.0,0.0002,2]
[362526844,1748351460451,-430.0,0.0002,2]
[362526845,1748351460461,-430.0,0.0002,2]
[362526846,1748351460471,-258.64573,0.0002,2]
[362526847,1748351460481,-1251.66,0.0002,2]
[362526848,1748351460492,-430.0,0.0002,2]
[362526849,1748351460502,-430.0,0.0002,2]
[362526850,1748351460512,-430.0,0.0002,2]
[362526851,1748351460522,-430.0,0.0002,2]
[362526852,1748351460531,-832.62,0.0002,2]
[362526853,1748351460541,-430.0,0.0002,2]
[362526854,1748351460554,-430.0,0.0002,2]
[362526855,1748351460564,-430.0,0.0002,2]
[362526856,1748351460574,-430.0,0.0002,2]
[362526857,1748351460584,-430.0,0.0002,2]
[362526858,1748351460593,-430.0,0.0002,2]
[362526859,1748351460602,-574.93,0.0002,2]
[362526860,1748351460611,-430.0,0.0002,2]
[362526861,1748351460621,-430.0,0.0002,2]
[362526862,1748351460632,-430.0,0.0002,2]
[362526863,1748351460643,-430.0,0.0002,2]
[362526864,1748351460653,-430.0,0.0002,2]
[362526865,1748351460663,-406.85729672,0.0002,2]
[362526866,1748351460672,-430.0,0.0002,2]
[362526867,1748351460683,-570.09,0.0002,2]
[362526868,1748351460692,-430.0,0.0002,2]
[362526869,1748351460703,-924.77,0.0002,2]
[362526870,1748351460712,-372.74498349,0.0002,2]
[362526871,1748351460722,-510.03104256,0.0002002,2]
[362526872,1748351460732,-1000.0,0.00020021,2]
[362526873,1748351460742,-1541.6,0.00020138,2]
[362526874,1748351460752,-2933.07380438,0.00020141,2]
[362526875,1748351460761,-300.055702,0.00020187,2]
[362526876,1748351460771,-1500.0,0.00020268,2]
[362526877,1748351460782,-1000.0,0.00020268,2]
[362526878,1748351460792,-430.0,0.00020273,2]
[362526879,1748351460803,-430.0,0.00020273,2]
[362526880,1748351460812,-430.0,0.00020273,2]
[362526881,1748351460822,-430.0,0.00020273,2]
[362526882,1748351460833,-430.0,0.00020273,2]
[362526883,1748351460842,-430.0,0.00020273,2]
[362526884,1748351460852,-430.0,0.00020273,2]
[362526885,1748351460861,-430.0,0.00020273,2]
[362526886,1748351460871,-430.0,0.00020273,2]
[362526887,1748351460881,-430.0,0.00020273,2]
[362526888,1748351460890,-430.0,0.00020273,2]
[362526889,1748351460900,-430.0,0.00020273,2]
[362526890,1748351460910,-430.0,0.00020273,2]
[362526891,1748351460919,-430.0,0.00020273,2]
[362526892,1748351460929,-430.0,0.00020273,2]
[362526893,1748351460938,-430.0,0.00020273,2]
[362526894,1748351460948,-430.0,0.00020273,2]
[362526895,1748351460958,-430.0,0.00020273,2]
[362526896,1748351460968,-430.0,0.00020273,2]
[362526897,1748351460977,-997.26,0.00020273,2]
[362526898,1748351460987,-430.0,0.00020273,2]
[362526899,1748351460997,-430.0,0.00020273,2]
[362526900,1748351461007,-430.0,0.00020273,2]
[362526901,1748351461016,-310.0,0.00020273,2]
[362526902,1748351461025,-448.98,0.00020273,2]
[362526903,1748351461035,-357.49351454,0.00020273,2]
[362526904,1748351461044,-430.0,0.00020273,2]
[362526905,1748351461059,-430.0,0.00020273,2]
[362526906,1748351461068,-430.0,0.00020273,2]
[362526907,1748351461077,-430.0,0.00020273,2]
[362526908,1748351461087,-430.0,0.00020273,2]
[362526909,1748351461096,-430.0,0.00020273,2]
[362526910,1748351461106,-430.0,0.00020273,2]
[362526911,1748351461203,-430.0,0.00020273,2]
[362526912,1748351461214,-430.0,0.00020273,2]
[362526913,1748351461224,-430.0,0.00020273,2]
[362526914,1748351461235,-2536.38,0.00020273,2]
[362526915,1748351461245,-430.0,0.00020273,2]
[362526916,1748351461257,-430.0,0.00020273,2]
[362526917,1748351461267,-1436.42,0.00020273,2]
[362526918,1748351461277,-430.0,0.00020273,2]
[362526919,1748351461287,-437.51,0.00020273,2]
[362526920,1748351461298,-430.0,0.00020273,2]
[362526921,1748351461308,-430.0,0.00020273,2]
[362526922,1748351461317,-975.12,0.00020273,2]
[362526923,1748351461327,-173.57752687,0.00020273,2]
[362526924,1748351461337,-430.0,0.00020273,2]
[362526925,1748351461348,-430.0,0.00020273,2]
[362526926,1748351461357,-430.0,0.00020273,2]
[362526927,1748351461367,-430.0,0.00020273,2]
[362526928,1748351461377,-430.0,0.00020273,2]
[362526929,1748351461387,-430.0,0.00020273,2]
[362526930,1748351461396,-430.0,0.00020273,2]
[362526931,1748351461406,-430.0,0.00020273,2]
[362526932,1748351461415,-203.43323106,0.00020273,2]
[362526933,1748351461425,-430.0,0.00020273,2]
[362526934,1748351461435,-430.0,0.00020273,2]
[362526935,1748351461445,-631.14,0.00020273,2]
[362526936,1748351461455,-510.0,0.00020273,2]
[362526937,1748351461464,-474.74,0.00020273,2]
[362526938,1748351461474,-430.0,0.00020273,2]
[362526939,1748351461484,-430.0,0.00020273,2]
[362526940,1748351461494,-270.63995141,0.00020273,2]
[362526941,1748351461505,-430.0,0.00020273,2]
[362526942,1748351461515,-1038.02,0.00020273,2]
[362526943,1748351461526,-430.0,0.00020273,2]
[362526944,1748351461537,-430.0,0.00020273,2]
[362526945,1748351461549,-2253.58,0.00020273,2]
[362526946,1748351461559,-430.0,0.00020273,2]
[362526947,1748351461569,-430.0,0.00020273,2]
[362526948,1748351461579,-430.0,0.00020273,2]
[362526949,1748351461589,-430.0,0.00020273,2]
[362526950,1748351461599,-1807.97,0.00020273,2]
[362526951,1748351461609,-430.0,0.00020273,2]
[362526952,1748351461619,-430.0,0.00020273,2]
[362526953,1748351461630,-430.0,0.00020273,2]
[362526954,1748351461640,-430.0,0.00020273,2]
[362526955,1748351461655,-430.0,0.00020273,2]
[362526956,1748351461666,-430.0,0.00020273,2]
[362526957,1748351461676,-430.0,0.00020273,2]
[362526958,1748351461686,-430.0,0.00020273,2]
[362526959,1748351461698,-430.0,0.00020273,2]
[362526960,1748351461711,-430.0,0.00020273,2]
[362526961,1748351461721,-430.0,0.00020273,2]
[362526962,1748351461731,-430.0,0.00020273,2]
[362526963,1748351461742,-430.0,0.00020273,2]
[362526964,1748351461753,-229.01845484,0.00020273,2]
[362526965,1748351461763,-433.7011679,0.00020273,2]
[362526966,1748351461774,-430.0,0.00020273,2]
[362526967,1748351461786,-624.22,0.00020273,2]
[362526968,1748351461798,-430.0,0.00020273,2]
[362526969,1748351461808,-430.0,0.00020273,2]
[362526970,1748351461818,-430.0,0.00020273,2]
[362526971,1748351461828,-545.27,0.00020273,2]
[362526972,1748351461838,-430.0,0.00020273,2]
[362526973,1748351461847,-430.0,0.00020273,2]
[362526974,1748351461857,-430.0,0.00020273,2]
[362526975,1748351461868,-480.53,0.00020273,2]
[362526976,1748351461877,-489.01,0.00020273,2]
[362526977,1748351461888,-430.0,0.00020273,2]
[362526978,1748351461897,-430.0,0.00020273,2]
[362526979,1748351461907,-430.0,0.00020273,2]
[362526980,1748351461916,-430.0,0.00020273,2]
[362526981,1748351461926,-430.0,0.00020273,2]
[362526982,1748351461936,-433.26044315,0.00020273,2]
[362526983,1748351461946,-430.0,0.00020273,2]
[362526984,1748351461956,-430.0,0.00020273,2]
[362526985,1748351461966,-430.0,0.00020273,2]
[362526986,1748351461975,-430.0,0.00020273,2]
[362526987,1748351461985,-430.0,0.00020273,2]
[362526988,1748351461995,-1251.66,0.00020273,2]
[362526989,1748351462004,-430.0,0.00020273,2]
[362526990,1748351462014,-330.59963243,0.00020273,2]
[362526991,1748351462023,-430.0,0.00020273,2]
[362526992,1748351462033,-430.0,0.00020273,2]
[362526993,1748351462043,-832.62,0.00020273,2]
[362526994,1748351462055,-432.5229024,0.00020273,2]
[362526995,1748351462064,-430.0,0.00020273,2]
[362526996,1748351462074,-430.0,0.00020273,2]
[362526997,1748351462083,-430.0,0.00020273,2]
[362526998,1748351462093,-574.93,0.00020273,2]
[362526999,1748351462103,-430.0,0.00020273,2]
[362527000,1748351462112,-430.0,0.00020273,2]
[362527001,1748351462122,-430.0,0.00020273,2]
[362527002,1748351462131,-570.09,0.00020273,2]
[362527003,1748351462141,-430.0,0.00020273,2]
[362527004,1748351462150,-924.77,0.00020273,2]
[362527005,1748351462160,-2933.07380438,0.00020348,3]
[362527006,1748351462171,-151.0,0.00020356,2]
[362527007,1748351462181,-500.0,0.00020356,2]
[362527008,1748351462190,-169.334509,0.00020383,2]
[362527009,1748351462200,-151.0,0.00020383,2]
[362527010,1748351462211,-500.0,0.00020383,2]
[362527011,1748351462220,-511.53329163,0.00020411,2]
[362527012,1748351462230,-329.9,0.00020538,3]
[362527013,1748351462239,-151.0,0.00020547,2]
[362527014,1748351462249,-151.0,0.00020547,2]
[362527015,1748351462259,-430.0,0.00020547,2]
[362527016,1748351462268,-430.0,0.00020547,2]
[362527017,1748351462280,-430.0,0.00020547,2]
[362527018,1748351462290,-430.0,0.00020547,2]
[362527019,1748351462302,-430.0,0.00020547,2]
[362527020,1748351462311,-430.0,0.00020547,2]
[362527021,1748351462320,-430.0,0.00020547,2]
[362527022,1748351462331,-430.0,0.00020547,2]
[362527023,1748351462340,-430.0,0.00020547,2]
[362527024,1748351462350,-430.0,0.00020547,2]
[362527025,1748351462436,-560.62,0.00020547,2]
[362527026,1748351462447,-533.27,0.00020547,2]
[362527027,1748351462456,-997.26,0.00020547,2]
[362527028,1748351462467,-151.0,0.00020547,2]
[362527029,1748351462476,-254.93392,0.00020547,2]
[362527030,1748351462488,-432.92384644,0.00020547,2]
[362527031,1748351462498,-237.17,0.00020547,2]
[362527032,1748351462508,-430.0,0.00020547,2]
[362527033,1748351462517,-430.0,0.00020547,2]
[362527034,1748351462527,-430.0,0.00020547,2]
[362527035,1748351462537,-430.0,0.00020547,2]
[362527036,1748351462550,-2536.38,0.00020547,2]
[362527037,1748351462559,-154.56220099,0.00020547,2]
[362527038,1748351462569,-430.0,0.00020547,2]
[362527039,1748351462579,-1436.42,0.00020547,2]
[362527040,1748351462590,-430.0,0.00020547,2]
[362527041,1748351462599,-437.51,0.00020547,2]
[362527042,1748351462609,-975.12,0.00020547,2]
[362527043,1748351462619,-430.0,0.00020547,2]
[362527044,1748351462628,-430.0,0.00020547,2]
[362527045,1748351462638,-430.0,0.00020547,2]
[362527046,1748351462648,-430.0,0.00020547,2]
[362527047,1748351462658,-430.0,0.00020547,2]
[362527048,1748351462667,-430.0,0.00020547,2]
[362527049,1748351462677,-430.0,0.00020547,2]
[362527050,1748351462687,-430.0,0.00020547,2]
[362527051,1748351462698,-631.14,0.00020547,2]
[362527052,1748351462710,-474.74,0.00020547,2]
[362527053,1748351462721,-430.0,0.00020547,2]
[362527054,1748351462731,-430.0,0.00020547,2]
[362527055,1748351462743,-1038.02,0.00020547,2]
[362527056,1748351462754,-430.0,0.00020547,2]
[362527057,1748351462765,-2253.58,0.00020547,2]
[362527058,1748351462775,-430.0,0.00020547,2]
[362527059,1748351462786,-430.0,0.00020547,2]
[362527060,1748351462801,-430.0,0.00020547,2]
[362527061,1748351462812,-1807.97,0.00020547,2]
[362527062,1748351462823,-430.0,0.00020547,2]
[362527063,1748351462833,-523.0,0.00020547,2]
[362527064,1748351462843,-430.0,0.00020547,2]
[362527065,1748351462853,-430.0,0.00020547,2]
[362527066,1748351462863,-430.0,0.00020547,2]
[362527067,1748351462873,-430.0,0.00020547,2]
[362527068,1748351462884,-430.0,0.00020547,2]
[362527069,1748351462894,-526.39,0.00020547,2]
[362527070,1748351462903,-430.0,0.00020547,2]
[362527071,1748351462913,-430.0,0.00020547,2]
[362527072,1748351462923,-430.0,0.00020547,2]
[362527073,1748351462933,-624.22,0.00020547,2]
[362527074,1748351462944,-430.0,0.00020547,2]
[362527075,1748351462954,-545.27,0.00020547,2]
[362527076,1748351462963,-430.0,0.00020547,2]
[362527077,1748351462974,-489.01,0.00020547,2]
[362527078,1748351462984,-430.0,0.00020547,2]
[362527079,1748351462995,-430.0,0.00020547,2]
[362527080,1748351463005,-430.0,0.00020547,2]
[362527081,1748351463015,-430.0,0.00020547,2]
[362527082,1748351463026,-430.0,0.00020547,2]
[362527083,1748351463037,-430.0,0.00020547,2]
[362527084,1748351463051,-430.0,0.00020547,2]
[362527085,1748351463061,-430.0,0.00020547,2]
[362527086,1748351463071,-1251.66,0.00020547,2]
[362527087,1748351463082,-430.0,0.00020547,2]
[362527088,1748351463092,-832.62,0.00020547,2]
[362527089,1748351463102,-430.0,0.00020547,2]
[362527090,1748351463111,-430.0,0.00020547,2]
[362527091,1748351463123,-521.30769799,0.00020547,2]
[362527092,1748351463133,-574.93,0.00020547,2]
[362527093,1748351463143,-430.0,0.00020547,2]
[362527094,1748351463154,-430.0,0.00020547,2]
[362527095,1748351463164,-570.09,0.00020547,2]
[362527096,1748351463175,-430.0,0.00020547,2]
[362527097,1748351463185,-924.77,0.00020547,2]
[362527098,1748351463196,-2933.07380438,0.00020555,3]
[362527099,1748351463206,-1500.0,0.00020568,2]
[362527100,1748351463217,-587.0,0.0002064,2]
[362527101,1748351463227,-587.0,0.0002064,2]
[362527102,1748351463238,-2933.07380438,0.00020762,3]
[362527103,1748351463248,-151.554944,0.00020821,2]
[362527104,1748351463258,-430.0,0.00020821,2]
[362527105,1748351463268,-430.0,0.00020821,2]
[362527106,1748351463277,-151.0,0.00020821,2]
[362527107,1748351463287,-151.0,0.00020821,2]
[362527108,1748351463300,-430.0,0.00020821,2]
[362527109,1748351463310,-430.0,0.00020821,2]
[362527110,1748351463321,-569.6,0.00020821,2]
[362527111,1748351463332,-430.0,0.00020821,2]
[362527112,1748351463343,-430.0,0.00020821,2]
[362527113,1748351463353,-430.0,0.00020821,2]
[362527114,1748351463363,-997.26,0.00020821,2]
[362527115,1748351463374,-430.0,0.00020821,2]
[362527116,1748351463384,-430.0,0.00020821,2]
[362527117,1748351463394,-449.88,0.00020821,2]
[362527118,1748351463404,-430.0,0.00020821,2]
[362527119,1748351463414,-2536.38,0.00020821,2]
[362527120,1748351463424,-430.0,0.00020821,2]
[362527121,1748351463434,-1436.42,0.00020821,2]
[362527122,1748351463445,-437.51,0.00020821,2]
[362527123,1748351463455,-975.12,0.00020821,2]
[362527124,1748351463465,-155.03,0.00020821,2]
[362527125,1748351463475,-430.0,0.00020821,2]
[362527126,1748351463486,-430.0,0.00020821,2]
[362527127,1748351463496,-430.0,0.00020821,2]
[362527128,1748351463507,-430.0,0.00020821,2]
[362527129,1748351463517,-430.0,0.00020821,2]
[362527130,1748351463604,-430.0,0.00020821,2]
[362527131,1748351463615,-430.0,0.00020821,2]
[362527132,1748351463625,-631.14,0.00020821,2]
[362527133,1748351463634,-474.74,0.00020821,2]
[362527134,1748351463644,-1038.02,0.00020821,2]
[362527135,1748351463654,-430.0,0.00020821,2]
[362527136,1748351463665,-2253.58,0.00020821,2]
[362527137,1748351463675,-430.0,0.00020821,2]
[362527138,1748351463684,-430.0,0.00020821,2]
[362527139,1748351463694,-1807.97,0.00020821,2]
[362527140,1748351463707,-430.0,0.00020821,2]
[362527141,1748351463717,-430.0,0.00020821,2]
[362527142,1748351463728,-430.0,0.00020821,2]
[362527143,1748351463738,-430.0,0.00020821,2]
[362527144,1748351463748,-430.0,0.00020821,2]
[362527145,1748351463759,-317.87427809,0.00020821,2]
[362527146,1748351463769,-624.22,0.00020821,2]
[362527147,1748351463781,-430.0,0.00020821,2]
[362527148,1748351463792,-545.27,0.00020821,2]
[362527149,1748351463808,-430.0,0.00020821,2]
[362527150,1748351463818,-489.01,0.00020821,2]
[362527151,1748351463827,-430.0,0.00020821,2]
[362527152,1748351463836,-430.0,0.00020821,2]
[362527153,1748351463846,-430.0,0.00020821,2]
[362527154,1748351463856,-258.64573,0.00020821,2]
[362527155,1748351463867,-430.0,0.00020821,2]
[362527156,1748351463877,-430.0,0.00020821,2]
[362527157,1748351463887,-430.0,0.00020821,2]
[362527158,1748351463897,-430.0,0.00020821,2]
[362527159,1748351463908,-258.64573,0.00020821,2]
[362527160,1748351463917,-1251.66,0.00020821,2]
[362527161,1748351463927,-430.0,0.00020821,2]
[362527162,1748351463938,-832.62,0.00020821,2]
[362527163,1748351463948,-430.0,0.00020821,2]
[362527164,1748351463959,-430.0,0.00020821,2]
[362527165,1748351463970,-574.93,0.00020821,2]
[362527166,1748351463981,-430.0,0.00020821,2]
[362527167,1748351463993,-430.0,0.00020821,2]
[362527168,1748351464004,-570.09,0.00020821,2]
[362527169,1748351464015,-430.0,0.00020821,2]
[362527170,1748351464026,-924.77,0.00020821,2]
[362527171,1748351464037,-2351.0,0.00020845,2]
[362527172,1748351464052,-207.4,0.00020917,2]
[362527173,1748351464062,-1849.93,0.00020943,2]
[362527174,1748351464073,-180.49732624,0.00020967,2]
[362527175,1748351464084,-256.153,0.00020967,2]
[362527176,1748351464094,-2933.07380438,0.00020969,4]
[362527177,1748351464105,-151.0,0.00021095,2]
[362527178,1748351464127,-151.0,0.00021095,2]
[362527179,1748351464151,-151.0,0.00021095,2]
[362527180,1748351464174,-430.0,0.00021095,2]
[362527182,1748351464198,-430.0,0.00021095,2]
[362527183,1748351464223,-430.0,0.00021095,2]
[362527184,1748351464245,-430.0,0.00021095,2]
[362527185,1748351464269,-151.0,0.00021095,2]
[362527186,1748351464288,-430.0,0.00021095,2]
[362527187,1748351464312,-430.0,0.00021095,2]
[362527188,1748351464337,-540.17,0.00021095,2]
[362527189,1748351464365,-997.26,0.00021095,2]
[362527190,1748351464381,-430.0,0.00021095,2]
[362527191,1748351464405,-337.13712963,0.00021095,2]
[362527192,1748351464424,-430.0,0.00021095,2]
[362527193,1748351464444,-2536.38,0.00021095,2]
[362527194,1748351464461,-177.57,0.00021095,2]
[362527195,1748351464479,-1436.42,0.00021095,2]
[362527196,1748351464497,-437.51,0.00021095,2]
[362527197,1748351464515,-975.12,0.00021095,2]
[362527198,1748351464533,-436.08,0.00021095,2]
[362527199,1748351464552,-151.0,0.00021095,2]
[362527200,1748351464569,-430.0,0.00021095,2]
[362527201,1748351464587,-151.0,0.00021095,2]
[362527202,1748351464604,-430.0,0.00021095,2]
[362527203,1748351464622,-430.0,0.00021095,2]
[362527204,1748351464641,-430.0,0.00021095,2]
[362527205,1748351464659,-430.0,0.00021095,2]
[362527206,1748351464677,-430.0,0.00021095,2]
[362527207,1748351464695,-631.14,0.00021095,2]
[362527208,1748351464715,-474.74,0.00021095,2]
[362527209,1748351464734,-1038.02,0.00021095,2]
[362527210,1748351464753,-415.78,0.00021095,2]
[362527211,1748351464771,-2253.58,0.00021095,2]
[362527212,1748351464790,-543.08013179,0.00021095,2]
[362527213,1748351464810,-1807.97,0.00021095,2]
[362527214,1748351464828,-430.0,0.00021095,2]
[362527215,1748351464846,-430.0,0.00021095,2]
[362527216,1748351464864,-430.0,0.00021095,2]
[362527217,1748351464882,-430.0,0.00021095,2]
[362527218,1748351464899,-624.22,0.00021095,2]
[362527219,1748351464917,-207.89,0.00021095,2]
[362527220,1748351464936,-545.27,0.00021095,2]
[362527221,1748351464954,-430.0,0.00021095,2]
[362527222,1748351464972,-489.01,0.00021095,2]
[362527223,1748351464989,-277.02,0.00021095,2]
[362527224,1748351465005,-430.0,0.00021095,2]
[362527225,1748351465022,-253.47,0.00021095,2]
[362527226,1748351465041,-430.0,0.00021095,2]
[362527227,1748351465175,-430.0,0.00021095,2]
[362527228,1748351465185,-430.0,0.00021095,2]
[362527229,1748351465195,-430.0,0.00021095,2]
[362527230,1748351465204,-1251.66,0.00021095,2]
[362527231,1748351465214,-430.0,0.00021095,2]
[362527232,1748351465224,-832.62,0.00021095,2]
[362527233,1748351465234,-227.21,0.00021095,2]
[362527235,1748351465244,-574.93,0.00021095,2]
[362527236,1748351465254,-430.0,0.00021095,2]
[362527237,1748351465264,-570.09,0.00021095,2]
[362527238,1748351465273,-924.77,0.00021095,2]
[362527239,1748351465282,-2000.0,0.00021116,2]
[362527240,1748351465292,-500.0,0.00021164,2]
[362527241,1748351465303,-2933.07380438,0.00021176,4]
[362527242,1748351465313,-500.0,0.00021313,2]
[362527243,1748351465322,-560.35,0.00021369,2]
[362527244,1748351465332,-366.82,0.00021369,2]
[362527245,1748351465341,-375.55770321,0.00021369,2]
[362527246,1748351465351,-430.0,0.00021369,2]
[362527247,1748351465361,-396.02,0.00021369,2]
[362527248,1748351465371,-430.0,0.00021369,2]
[362527249,1748351465381,-997.26,0.00021369,2]
[362527250,1748351465390,-430.0,0.00021369,2]
[362527251,1748351465400,-430.0,0.00021369,2]
[362527252,1748351465410,-2536.38,0.00021369,2]
[362527253,1748351465419,-1436.42,0.00021369,2]
[362527254,1748351465429,-437.51,0.00021369,2]
[362527255,1748351465439,-975.12,0.00021369,2]
[362527256,1748351465449,-430.0,0.00021369,2]
[362527257,1748351465458,-430.0,0.00021369,2]
[362527258,1748351465468,-430.0,0.00021369,2]
[362527259,1748351465477,-430.0,0.00021369,2]
[362527260,1748351465487,-430.0,0.00021369,2]
[362527261,1748351465497,-631.14,0.00021369,2]
[362527262,1748351465506,-474.74,0.00021369,2]
[362527263,1748351465516,-1038.02,0.00021369,2]
[362527264,1748351465526,-2253.58,0.00021369,2]
[362527265,1748351465536,-1807.97,0.00021369,2]
[362527266,1748351465546,-430.0,0.00021369,2]
[362527267,1748351465559,-430.0,0.00021369,2]
[362527268,1748351465568,-430.0,0.00021369,2]
[362527269,1748351465578,-430.0,0.00021369,2]
[362527270,1748351465588,-624.22,0.00021369,2]
[362527271,1748351465597,-545.27,0.00021369,2]
[362527272,1748351465607,-430.0,0.00021369,2]
[362527273,1748351465616,-489.01,0.00021369,2]
[362527274,1748351465625,-395.51,0.00021369,2]
[362527275,1748351465635,-430.0,0.00021369,2]
[362527276,1748351465645,-430.0,0.00021369,2]
[362527277,1748351465655,-378.85,0.00021369,2]
[362527278,1748351465664,-430.0,0.00021369,2]
[362527279,1748351465674,-1251.66,0.00021369,2]
[362527280,1748351465684,-430.0,0.00021369,2]
[362527281,1748351465694,-832.62,0.00021369,2]
[362527282,1748351465707,-574.93,0.00021369,2]
[362527283,1748351465716,-430.0,0.00021369,2]
[362527284,1748351465726,-570.09,0.00021369,2]
[362527285,1748351465736,-924.77,0.00021369,2]
[362527286,1748351465746,-2933.07380438,0.00021383,5]
[362527287,1748351465755,-2933.07380438,0.0002159,5]
[362527288,1748351465765,-430.0,0.00021643,2]
[362527289,1748351465774,-430.0,0.00021643,2]
[362527290,1748351465785,-997.26,0.00021643,2]
[362527291,1748351465794,-151.0,0.00021643,2]
[362527292,1748351465805,-430.0,0.00021643,2]
[362527293,1748351465814,-430.0,0.00021643,2]
[362527294,1748351465823,-2536.38,0.00021643,2]
[362527295,1748351465833,-1436.42,0.00021643,2]
[362527296,1748351465842,-437.51,0.00021643,2]
[362527297,1748351465852,-975.12,0.00021643,2]
[362527298,1748351465861,-430.0,0.00021643,2]
[362527299,1748351465872,-430.0,0.00021643,2]
[362527300,1748351465881,-430.0,0.00021643,2]
[362527301,1748351465891,-430.0,0.00021643,2]
[362527302,1748351465900,-430.0,0.00021643,2]
[362527303,1748351465910,-631.14,0.00021643,2]
[362527304,1748351465919,-474.74,0.00021643,2]
[362527305,1748351465928,-1038.02,0.00021643,2]
[362527306,1748351465938,-2253.58,0.00021643,2]
[362527307,1748351465948,-1807.97,0.00021643,2]